bitfinex-derivatives/quotes_ETHF0:USTF0_20260209
["timestamp","ask_amount","ask_price","bid_price","bid_amount"]
[1770627340464,4.71917871,2055.2,2054.4,4.44000761]
[1770627341359,4.71917871,2055.6,2054.6,4.44000761]
[1770627341564,4.71917871,2055.6,2054.8,4.44000761]
[1770627341964,40.8,2055.8,2055.0,4.44000761]
[1770627342166,0.00553846,2055.9,2055.0,4.44000761]
[1770627342358,4.72471717,2055.9,2055.0,4.44000761]
[1770627342858,0.00553846,2055.9,2055.2,4.44000761]
[1770627343064,2.85029003,2056.7,2055.2,4.44000761]
[1770627343065,4.71917871,2056.4,2055.2,4.44000761]
[1770627343266,4.71917871,2056.3,2055.2,4.44000761]
[1770627343466,4.71917871,2056.1,2055.2,4.44000761]
[1770627343961,0.00389293,2056.1,2055.4,4.44000761]
[1770627344163,4.71917871,2056.0,2055.4,4.44000761]
[1770627344564,0.00389293,2056.1,2055.4,4.44000761]
[1770627345164,4.72307164,2056.1,2055.4,4.44000761]
[1770627347471,4.72307164,2056.1,2055.2,5.41917726]
[1770627347669,5.4271942,2055.9,2055.0,5.41917726]
[1770627348571,5.43108713,2056.1,2055.1,5.41917726]
[1770627349573,0.00389293,2056.1,2055.3,5.41917726]
[1770627351273,5.43108713,2056.1,2055.3,5.41917726]
[1770627351675,0.00389293,2056.1,2055.5,5.41917726]
[1770627351971,0.00389293,2056.1,2055.5,5.42341812]
[1770627353073,0.00389293,2056.1,2055.7,5.41917726]
[1770627353268,5.4271942,2056.6,2055.7,5.41917726]
[1770627353668,46.2271942,2056.5,2055.7,5.41917726]
[1770627353872,40.8,2056.5,2055.7,5.41917726]
[1770627354070,46.2271942,2056.5,2055.7,5.41917726]
[1770627354268,5.4271942,2056.4,2055.7,5.41917726]
[1770627355973,5.4271942,2056.4,2055.6,0.24345]
[1770627356169,5.4271942,2056.4,2055.6,5.66262726]
[1770627358678,46.23303198,2056.5,2055.6,5.66262726]
[1770627359074,5.4271942,2056.4,2055.6,5.66262726]
[1770627360676,40.80583778,2056.5,2055.6,5.66262726]
[1770627360866,5.4271942,2056.4,2055.6,5.66262726]
[1770627363674,5.4271942,2056.4,2055.6,0.24345]
[1770627366681,8.2929388,2056.4,2055.6,0.24345]
[1770627366880,5.4271942,2056.3,2055.6,0.24345]
[1770627367274,5.4271942,2056.2,2055.6,0.24345]
[1770627367874,5.4271942,2056.2,2055.5,0.00424086]
[1770627369280,8.2929388,2056.2,2055.5,0.00424086]
[1770627369478,5.4271942,2056.1,2055.5,0.00424086]
[1770627370182,5.4271942,2056.3,2055.5,5.66686812]
[1770627370882,8.2929388,2056.3,2055.5,5.66686812]
[1770627371082,5.4271942,2056.2,2055.5,5.66686812]
[1770627372482,8.2929388,2056.4,2055.8,5.41917726]
[1770627372684,5.4271942,2056.3,2055.8,5.41917726]
[1770627373376,8.29877658,2056.5,2055.8,5.41917726]
[1770627373577,5.4271942,2056.4,2055.8,5.41917726]
[1770627373781,5.4271942,2056.2,2055.7,5.66261726]
[1770627374891,2.8657446,2056.4,2055.7,5.66261726]
[1770627375098,5.43303198,2056.5,2055.7,5.66261726]
[1770627375692,6.80215805,2056.4,2055.7,0.24344]
[1770627376391,6.80215805,2056.4,2055.7,7.32950387]
[1770627378595,9.81028452,2056.5,2055.7,7.32950387]
[1770627378897,0.00583778,2056.5,2055.8,6.64557308]
[1770627379294,7.78e-06,2056.5,2056.1,0.24339]
[1770627379492,43.6657446,2056.7,2056.2,6.64557308]
[1770627379493,40.8,2056.7,2056.2,6.64557308]
[1770627379693,47.73870214,2056.7,2056.2,6.64557308]
[1770627380303,9.80444674,2056.9,2056.2,6.64557308]
[1770627380490,9.80952373,2056.9,2056.2,6.64557308]
[1770627380697,6.93870214,2056.8,2056.1,0.24339]
[1770627380997,6.93870214,2056.7,2056.1,0.24339]
[1770627381401,43.6657446,2056.8,2056.1,6.88896308]
[1770627381698,6.93870214,2056.7,2056.1,6.88896308]
[1770627381893,6.93870214,2056.7,2056.1,0.24339]
[1770627382491,6.93870214,2056.7,2055.8,6.64557308]
[1770627382799,6.93870214,2056.3,2055.6,6.88902308]
[1770627384213,6.93870214,2056.4,2055.6,6.88902308]
[1770627385800,6.93870214,2056.3,2055.6,6.88902308]
[1770627386104,6.93870214,2056.1,2055.4,6.64557308]
[1770627387002,6.93870214,2056.1,2055.4,6.65163745]
[1770627387501,6.93870214,2056.3,2055.6,6.64557308]
[1770627388206,6.93870214,2056.3,2055.5,6.88903308]
[1770627389300,6.93870214,2056.2,2055.5,6.88903308]
[1770627392500,6.93870214,2056.2,2055.4,0.00606437]
[1770627392698,6.93870214,2056.2,2055.4,6.65163745]
[1770627395207,6.93870214,2056.2,2055.4,6.89510745]
[1770627401314,6.93870214,2056.1,2055.2,2.91245721]
[1770627401512,6.93870214,2055.9,2055.1,6.64557308]
[1770627401714,6.93870214,2055.9,2055.3,6.64557308]
[1770627401910,6.93870214,2055.9,2055.5,6.64557308]
[1770627402311,6.93870214,2055.9,2055.5,6.65140554]
[1770627402513,9.81948328,2056.1,2055.5,6.65140554]
[1770627402713,6.93870214,2056.0,2055.5,0.00583246]
[1770627403916,6.93870214,2056.0,2055.4,6.88904308]
[1770627403917,6.93870214,2056.0,2055.4,0.24347]
[1770627404713,6.93870214,2055.9,2055.4,0.00453848]
[1770627405212,6.93870214,2055.9,2055.2,6.64557308]
[1770627406121,6.93870214,2055.9,2055.2,6.6511875]
[1770627408320,6.93870214,2055.9,2055.2,0.00561442]
[1770627408720,6.93870214,2055.9,2054.9,7.86763873]
[1770627409022,7.6866952,2055.6,2054.8,7.86763873]
[1770627409217,7.6866952,2055.4,2054.8,7.86763873]
[1770627409829,0.00507195,2055.4,2054.8,8.11734985]
[1770627410124,7.69176715,2055.4,2054.8,8.11734985]
[1770627410322,0.00507195,2055.4,2054.8,8.11734985]
[1770627410927,7.69176715,2055.4,2054.8,8.11734985]
[1770627412426,0.00507195,2055.4,2054.8,8.11734985]
[1770627413427,7.69176715,2055.4,2054.8,8.11734985]
[1770627414528,0.00507195,2055.4,2054.8,8.11734985]
[1770627415125,7.6866952,2055.3,2054.8,8.11734985]
[1770627417531,7.69176715,2055.4,2054.8,8.11734985]
[1770627422230,7.69176715,2055.4,2054.8,0.24971112]
[1770627422536,7.69176715,2055.4,2054.8,0.00617112]
[1770627422737,7.6866952,2055.3,2054.6,7.86763873]
[1770627423739,7.6866952,2055.3,2054.6,7.87320835]
[1770627424040,7.6866952,2055.5,2055.0,7.86763873]
[1770627424234,7.6866952,2055.7,2055.2,7.86763873]
[1770627424434,7.6866952,2056.1,2055.4,7.86763873]
[1770627425135,7.69013083,2056.1,2055.4,7.86763873]
[1770627425333,0.00343563,2056.1,2055.6,7.86763873]
[1770627425642,40.8,2056.4,2055.6,7.86763873]
[1770627426143,10.55961549,2056.7,2056.0,7.86763873]
[1770627426333,7.6866952,2056.7,2056.0,7.86763873]
[1770627426529,40.8,2056.6,2056.0,7.86763873]
[1770627426735,48.4866952,2056.6,2056.0,7.86763873]
[1770627427132,40.8,2056.6,2056.0,7.86763873]
[1770627427336,0.00499354,2056.7,2056.0,7.86763873]
[1770627427738,7.69168874,2056.7,2056.0,7.86763873]
[1770627428332,7.6866952,2056.4,2055.7,7.86763873]
[1770627430838,7.6866952,2056.4,2055.4,7.86763873]
[1770627431742,7.6866952,2056.4,2055.2,0.24349]
[1770627431743,7.6866952,2056.4,2055.2,8.11112873]
[1770627431940,7.6866952,2056.1,2055.0,7.86763873]
[1770627432145,7.6866952,2055.8,2054.6,8.11676835]
[1770627433147,7.6866952,2055.7,2054.6,8.11676835]
[1770627433348,7.6866952,2055.5,2054.6,8.11676835]
[1770627433546,7.6866952,2055.5,2054.6,7.87320835]
[1770627434045,7.6866952,2055.5,2054.6,0.00556962]
[1770627436544,7.6866952,2055.5,2054.6,8.51506272]
[1770627438342,7.6866952,2055.5,2054.6,0.00556962]
[1770627438948,8.3154903,2055.3,2054.6,0.00556962]
[1770627439245,8.3154903,2055.3,2054.6,8.55465329]
[1770627440942,40.8,2055.4,2054.6,8.55465329]
[1770627441645,49.1154903,2055.4,2054.6,8.55465329]
[1770627442244,40.8,2055.4,2054.6,8.55465329]
[1770627443041,49.1154903,2055.4,2054.6,8.55465329]
[1770627443235,8.3154903,2055.3,2054.6,8.55465329]
[1770627447552,8.3154903,2055.3,2054.6,0.00556962]
[1770627447753,8.3154903,2055.3,2054.6,8.55465329]
[1770627449143,40.8,2055.4,2054.8,8.54908367]
[1770627449347,8.3154903,2055.5,2054.8,8.54908367]
[1770627449949,8.3154903,2055.3,2054.8,8.54908367]
[1770627450350,8.3154903,2055.3,2054.7,8.79263367]
[1770627450854,40.8,2055.4,2054.7,8.79263367]
[1770627451557,8.3154903,2055.3,2054.7,8.79263367]
[1770627452453,49.1154903,2055.3,2054.7,8.79263367]
[1770627452654,8.3154903,2055.2,2054.7,8.79263367]
[1770627452862,8.32045844,2055.2,2054.7,8.79263367]
[1770627454752,8.32045844,2055.2,2054.6,0.00556962]
[1770627455453,8.32045844,2055.2,2054.6,8.55465329]
[1770627456354,8.32045844,2055.2,2054.4,8.54908367]
[1770627456953,8.32045844,2055.2,2054.2,8.54908367]
[1770627457352,8.32045844,2055.2,2054.2,8.55321211]
[1770627457558,11.17979244,2055.2,2054.2,0.00412844]
[1770627457856,11.1748243,2055.1,2054.2,0.00412844]
[1770627458061,8.3154903,2055.0,2054.2,0.00412844]
[1770627458255,8.3154903,2054.9,2054.2,0.00412844]
[1770627459955,8.3154903,2054.9,2054.2,8.55321211]
[1770627472364,8.3154903,2054.9,2054.2,0.00412844]
[1770627472566,8.3154903,2054.9,2054.2,8.41968203]
[1770627473765,8.3154903,2054.9,2054.2,0.00412844]
[1770627479773,8.3154903,2054.9,2054.2,8.41968203]
[1770627481177,8.3154903,2054.9,2054.2,0.00412844]
[1770627481374,11.1748243,2054.9,2054.2,0.00412844]
[1770627481567,8.80467631,2054.8,2054.1,0.24362]
[1770627482166,8.80467631,2054.8,2053.0,5.9963]
[1770627482167,8.80467631,2054.4,2053.6,8.65923359]
[1770627482376,8.80467631,2054.4,2053.4,11.31582408]
[1770627482570,8.80467631,2054.0,2053.4,0.00472998]
[1770627482875,8.80467631,2053.8,2053.4,0.00472998]
[1770627483379,8.80467631,2053.8,2053.3,8.41555359]
[1770627483575,8.80467631,2053.8,2053.1,8.65929359]
[1770627483876,8.80467631,2053.8,2053.1,7.67372163]
[1770627484178,8.80467631,2053.8,2053.1,7.67848887]
[1770627484474,8.80467631,2053.8,2053.1,0.00476724]
[1770627484879,8.80467631,2053.7,2053.1,0.00476724]
[1770627485074,8.81047946,2053.7,2053.1,0.00476724]
[1770627485973,8.81047946,2053.7,2052.4,8.41555359]
[1770627486175,8.80467631,2053.2,2052.4,8.41555359]
[1770627486376,8.80467631,2053.1,2052.4,8.41555359]
[1770627486777,8.80467631,2053.1,2052.3,0.26998805]
[1770627487083,8.80467631,2053.1,2052.2,8.41555359]
[1770627487378,8.80467631,2053.1,2052.3,0.00497245]
[1770627487578,8.80467631,2053.1,2052.3,8.42052604]
[1770627488284,40.29067631,2053.4,2052.3,8.69355197]
[1770627488484,40.8,2053.3,2052.3,8.69355197]
[1770627488786,49.60467631,2053.3,2052.5,8.41555359]
[1770627489176,8.80467631,2053.2,2052.5,8.41555359]
[1770627491581,8.80467631,2053.2,2052.4,8.65938359]
[1770627491981,8.80467631,2053.2,2052.4,8.41555359]
[1770627496486,40.8,2053.3,2052.6,8.97580876]
[1770627497480,49.32549531,2053.3,2052.6,8.97580876]
[1770627497690,9.30241902,2053.2,2052.6,8.97580876]
[1770627499990,40.8,2053.3,2052.6,8.97580876]
[1770627500190,50.10241902,2053.3,2052.6,8.97580876]
[1770627501289,9.30241902,2053.2,2052.6,8.97580876]
[1770627503994,9.30241902,2053.4,2052.8,8.96979419]
[1770627504492,50.10241902,2053.4,2052.8,8.96979419]
[1770627505193,9.30241902,2053.3,2052.8,8.96979419]
[1770627506495,9.30241902,2053.3,2052.7,9.21358419]
[1770627507391,9.30241902,2053.3,2052.7,8.96979419]
[1770627509800,9.30241902,2052.6,2052.3,0.00497245]
[1770627510095,9.30241902,2052.6,2052.1,8.96979419]
[1770627511400,9.30241902,2052.6,2051.6,8.96979419]
[1770627511998,9.30241902,2052.6,2051.6,9.21371419]
[1770627512700,9.30241902,2052.4,2051.6,9.21371419]
[1770627512999,9.30241902,2052.4,2051.6,9.48612496]
[1770627518195,40.8,2052.3,2051.6,9.48612496]
[1770627518395,50.10241902,2052.3,2051.6,9.48612496]
[1770627518903,9.30241902,2052.9,2051.9,8.96979419]
[1770627519300,9.30241902,2052.7,2051.9,8.96979419]
[1770627520196,9.30241902,2052.7,2051.8,9.21369419]
[1770627523603,40.8,2052.8,2051.8,9.21369419]
[1770627523799,50.10241902,2052.8,2051.8,9.21369419]
[1770627524005,9.30241902,2052.7,2051.8,9.21369419]
[1770627526315,40.8,2052.8,2051.8,9.21369419]
[1770627526613,49.64906404,2052.8,2051.8,9.21369419]
[1770627526809,8.84906404,2052.7,2051.8,9.21369419]
[1770627527006,2.86716478,2053.2,2052.3,8.93885042]
[1770627527007,8.84906404,2053.2,2052.3,8.93885042]
[1770627527510,8.84906404,2053.0,2052.3,8.93885042]
[1770627529614,40.8,2053.1,2052.3,8.93885042]
[1770627531415,49.64906404,2053.1,2052.3,8.93885042]
[1770627531913,40.8,2053.1,2052.6,8.69502042]
[1770627532114,8.84906404,2053.0,2052.6,8.69502042]
[1770627532716,8.84906404,2053.0,2052.5,0.24381]
[1770627534618,8.84906404,2053.0,2052.5,8.93883042]
[1770627535112,8.84906404,2053.0,2052.5,0.24381]
[1770627535820,8.84906404,2053.0,2052.8,0.01]
[1770627537416,8.84906404,2053.0,2052.5,0.24381]
[1770627538114,8.84906404,2053.0,2052.1,8.69502042]
[1770627538316,8.84906404,2053.0,2051.9,8.93890042]
[1770627538519,8.84906404,2052.9,2051.9,8.93890042]
[1770627538716,8.84906404,2052.6,2051.9,8.93890042]
[1770627540523,8.84906404,2052.6,2051.9,0.24388]
[1770627541323,2.86716478,2052.8,2051.9,0.24388]
[1770627541324,8.84906404,2052.4,2051.9,0.24388]
[1770627542524,8.84906404,2052.4,2051.9,8.93890042]
[1770627543720,0.02,2051.9,2051.2,8.69502042]
[1770627543914,8.84906404,2051.8,2051.2,8.69502042]
[1770627544619,8.84906404,2051.8,2051.3,0.24395]
[1770627544822,8.84906404,2051.8,2051.3,8.93897042]
[1770627545824,8.84906404,2051.8,2051.1,0.27982383]
[1770627546131,8.84906404,2051.6,2051.0,8.69502042]
[1770627546631,8.84906404,2051.5,2050.3,8.69502042]
[1770627546924,8.84906404,2050.9,2050.3,8.69502042]
[1770627548224,8.84906404,2050.9,2050.0,8.69502042]
[1770627548429,8.84906404,2050.9,2049.7,8.69502042]
[1770627548722,8.84906404,2050.5,2049.7,8.69502042]
[1770627549623,8.84906404,2050.7,2049.8,8.93916042]
[1770627549823,8.85906404,2050.9,2049.8,8.93916042]
[1770627550222,8.84906404,2050.9,2049.8,8.93916042]
[1770627550423,49.64906404,2050.8,2049.8,8.93916042]
[1770627550826,39.8,2050.8,2050.3,8.69502042]
[1770627551830,40.8,2051.0,2050.3,8.69502042]
[1770627552929,0.01,2050.9,2050.3,8.69502042]
[1770627553334,40.8,2051.0,2050.5,8.69502042]
[1770627553830,8.84906404,2051.2,2050.5,8.69502042]
[1770627554233,0.01,2051.1,2050.5,8.69502042]
[1770627554425,40.81,2051.1,2050.5,8.69502042]
[1770627554731,49.64906404,2051.1,2050.5,8.69502042]
[1770627554932,49.65906404,2051.1,2050.5,8.69502042]
[1770627555131,49.64906404,2051.1,2050.5,8.69502042]
[1770627555430,9.39374341,2050.8,2050.1,9.35074843]
[1770627555734,9.39374341,2050.8,2050.3,9.35074843]
[1770627558827,9.40374341,2050.8,2050.3,9.35074843]
[1770627559031,9.39374341,2050.8,2050.3,9.35074843]
[1770627559631,9.39374341,2050.8,2050.2,8.98910759]
[1770627559829,9.40374341,2050.8,2050.2,8.98910759]
[1770627560231,9.39374341,2050.8,2050.2,8.98910759]
[1770627560633,9.40374341,2050.8,2050.2,8.98910759]
[1770627560834,9.39374341,2050.8,2050.2,8.98910759]
[1770627563833,50.24904429,2051.1,2050.4,0.24406]
[1770627564036,9.43904429,2051.0,2050.5,8.74501759]
[1770627564436,50.23904429,2051.1,2050.5,8.74501759]
[1770627566645,40.8,2051.1,2050.7,8.74501759]
[1770627567238,9.43904429,2051.4,2050.9,8.74501759]
[1770627567443,9.43904429,2051.4,2050.8,0.24402]
[1770627567648,9.43904429,2051.1,2050.8,8.98903759]
[1770627568337,9.44904429,2051.2,2050.8,8.98903759]
[1770627568540,9.43904429,2051.2,2050.8,0.24402]
[1770627569042,9.43904429,2051.2,2050.8,8.98903759]
[1770627570937,50.23904429,2051.3,2050.8,8.98903759]
[1770627571138,9.43904429,2051.2,2050.8,8.98903759]
[1770627572446,9.43904429,2051.2,2050.3,8.74501759]
[1770627573249,50.24904429,2051.3,2050.7,8.74501759]
[1770627573642,9.43904429,2051.2,2050.7,8.74501759]
[1770627573950,9.43904429,2051.2,2050.6,0.24404]
[1770627574549,9.43904429,2051.2,2050.3,8.74501759]
[1770627575055,9.43904429,2051.0,2050.3,8.74501759]
[1770627575352,9.43904429,2051.2,2050.6,8.98905759]
[1770627576445,40.81,2051.3,2050.6,8.98905759]
[1770627576647,9.43904429,2051.4,2050.6,8.98905759]
[1770627577353,40.8,2051.4,2050.6,8.98905759]
[1770627577650,9.43904429,2051.6,2050.6,8.98905759]
[1770627578053,9.43904429,2051.4,2050.6,8.98905759]
[1770627581557,9.43904429,2051.4,2050.6,0.24404]
[1770627581756,9.43904429,2051.3,2050.6,0.24404]
[1770627582548,9.43904429,2051.1,2050.6,0.24404]
[1770627586458,9.43904429,2051.1,2050.6,9.72763733]
[1770627586956,8.81128768,2051.4,2050.6,9.72763733]
[1770627587660,8.82128768,2051.4,2050.6,9.72763733]
[1770627588059,8.81128768,2051.4,2050.6,9.72763733]
[1770627588261,8.82128768,2051.4,2050.6,9.72763733]
[1770627588660,8.81128768,2051.4,2050.6,0.24404]
[1770627589063,8.81128768,2051.2,2050.6,9.72763733]
[1770627589257,8.81128768,2051.4,2050.6,9.72763733]
[1770627589659,8.82128768,2051.4,2050.6,9.72763733]
[1770627590163,0.01,2051.3,2050.6,9.72763733]
[1770627590365,8.82128768,2051.3,2050.6,9.72763733]
[1770627590564,8.81128768,2051.3,2050.6,9.72763733]
[1770627591564,8.82128768,2051.3,2050.6,9.72763733]
[1770627591973,8.81128768,2051.3,2050.6,9.72763733]
[1770627592269,8.82128768,2051.3,2050.6,9.72763733]
[1770627592672,8.81128768,2051.3,2050.6,9.72763733]
[1770627592970,8.82128768,2051.3,2050.6,9.72763733]
[1770627593274,8.81128768,2051.3,2050.6,9.72763733]
[1770627599874,8.81128768,2051.3,2048.0,2.85532527]
[1770627599875,0.36126071,2050.7,2049.7,9.84003388]
[1770627600074,0.36126071,2050.6,2049.7,9.84003388]
[1770627600372,0.36126071,2050.3,2049.5,9.56967214]
[1770627600677,0.36126071,2050.3,2049.5,10.09065302]
[1770627600678,4.30266152,2050.2,2049.5,10.09065302]
[1770627600877,3.76745152,2050.2,2049.8,9.56953676]
[1770627601077,0.0051707,2050.3,2049.8,9.56953676]
[1770627601681,0.0051707,2050.3,2050.0,9.48359733]
[1770627602276,40.8,2050.5,2050.0,9.48359733]
[1770627602573,40.81,2050.5,2050.0,9.48359733]
[1770627602774,40.8,2050.5,2050.0,9.48359733]
[1770627603081,2.41247054,2051.0,2050.4,9.48359733]
[1770627603275,2.41751422,2051.0,2050.4,9.48876804]
[1770627604175,43.1791682,2050.9,2050.4,9.48876804]
[1770627604481,2.54641662,2051.1,2050.6,9.48359733]
[1770627605576,40.8,2051.0,2050.6,9.48359733]
[1770627606180,0.00537115,2051.1,2050.6,9.48359733]
[1770627606581,40.80537115,2051.1,2050.6,9.48359733]
[1770627607879,42.48015881,2051.1,2050.6,9.48359733]
[1770627608472,42.48015881,2051.1,2050.7,9.50475102]
[1770627608675,40.80537115,2051.1,2050.7,9.50475102]
[1770627609284,3.96719278,2051.7,2050.7,9.50475102]
[1770627609484,1.100028,2051.6,2050.7,9.49475102]
[1770627609685,1.100028,2051.6,2050.5,6.24783]
[1770627609686,1.07165122,2051.5,2051.0,9.52798872]
[1770627609884,1.07165122,2051.4,2051.0,9.52798872]
[1770627610078,41.87165122,2051.5,2051.0,9.52798872]
[1770627610279,40.80435512,2051.5,2051.0,9.51798872]
[1770627610479,3.66550491,2051.8,2051.0,9.51798872]
[1770627610680,0.77549231,2051.4,2050.2,9.52941263]
[1770627610978,2.86716478,2050.7,2049.7,9.91715879]
[1770627611176,2.86716478,2050.7,2049.9,11.92666296]
[1770627611379,0.01,2050.5,2049.9,11.92666296]
[1770627611772,0.00599336,2050.5,2049.9,11.93020914]
[1770627611975,0.01599336,2050.5,2049.9,11.93020914]
[1770627612177,1.94008493,2050.4,2049.9,11.93020914]
[1770627612381,1.94008493,2050.4,2049.0,9.91743124]
[1770627612582,2.12743457,2050.2,2049.2,9.82375641]
[1770627612782,2.12743457,2050.1,2049.2,9.82375641]
[1770627612978,2.12743457,2049.9,2049.2,9.82375641]
[1770627613486,2.12743457,2049.9,2049.2,9.82772395]
[1770627613676,1.82591884,2050.2,2049.2,9.84216038]
[1770627613882,1.82591884,2050.0,2049.2,9.84216038]
[1770627615386,1.82591884,2050.0,2049.4,9.85959099]
[1770627616383,0.94615099,2049.8,2049.4,0.01]
[1770627617089,41.72330595,2049.9,2049.4,9.81808628]
[1770627617279,40.8,2049.9,2049.4,9.81808628]
[1770627617486,0.00599336,2050.5,2049.5,9.80808628]
[1770627617487,0.6882037,2050.5,2049.5,9.80808628]
[1770627617689,0.6882037,2050.5,2049.8,9.87365292]
[1770627618387,0.22070642,2050.3,2049.6,10.11781292]
[1770627618583,0.01,2050.2,2049.6,10.11781292]
[1770627618783,0.20652484,2050.2,2049.6,10.11781292]
[1770627619180,0.01,2050.2,2049.6,10.11781292]
[1770627619386,40.8,2050.4,2049.6,10.11781292]
[1770627621486,40.8,2050.4,2049.9,9.82377771]
[1770627622688,40.8,2050.4,2049.9,0.01]
[1770627623291,40.8,2050.4,2049.9,9.85422756]
[1770627623492,40.8,2050.4,2049.9,9.84422756]
[1770627623992,40.8,2050.4,2050.0,0.01]
[1770627624187,40.8,2050.4,2049.6,0.24416]
[1770627624494,4.32646846,2050.3,2049.3,9.84999018]
[1770627624689,0.01,2050.3,2049.5,11.92666296]
[1770627625090,0.01,2050.3,2049.3,9.84999018]
[1770627626998,40.8,2050.4,2049.5,9.82732026]
[1770627628295,4.32088378,2050.3,2049.5,9.82732026]
[1770627628597,0.01,2050.2,2049.5,9.82732026]
[1770627629995,40.8,2050.4,2049.5,9.82732026]
[1770627630203,4.32265827,2050.3,2049.5,9.82732026]
[1770627630498,40.81,2050.4,2049.5,9.82732026]
[1770627630688,40.8,2050.4,2049.5,9.82732026]
[1770627630892,4.32241294,2050.3,2049.5,9.82732026]
[1770627631093,40.8,2050.4,2049.5,9.83732026]
[1770627631390,40.8,2050.4,2049.5,9.82732026]
[1770627632796,9.45938537,2050.9,2049.9,8.25136531]
[1770627633292,9.45938537,2050.9,2050.6,0.01]
[1770627633493,9.45938537,2051.1,2050.4,8.05023115]
[1770627633999,9.45938537,2050.9,2050.0,8.30969034]
[1770627634787,0.01,2050.4,2050.0,8.30969034]
[1770627634988,9.45938537,2051.3,2050.6,9.28368647]
[1770627635188,9.45938537,2051.6,2050.8,9.28368647]
[1770627635399,50.25938537,2051.5,2050.8,9.28869356]
[1770627635600,50.25938537,2051.5,2051.3,0.01]
[1770627635795,50.25938537,2051.5,2050.9,9.28368647]
[1770627636199,9.45938537,2051.4,2051.3,0.01]
[1770627636397,9.45938537,2051.4,2050.9,9.28368647]
[1770627636588,9.46346918,2051.6,2050.9,9.28368647]
[1770627636796,9.45938537,2051.9,2051.1,9.28368647]
[1770627637199,40.8,2051.8,2051.1,9.28368647]
[1770627637499,50.25938537,2051.8,2051.1,9.28368647]
[1770627637700,50.2639634,2051.8,2051.1,9.28368647]
[1770627638694,40.80457803,2051.8,2051.3,9.28368647]
[1770627638900,40.80457803,2051.8,2050.9,6.00256]
[1770627638901,9.4639634,2051.8,2050.9,9.28368647]
[1770627639291,9.4639634,2051.8,2051.1,9.28368647]
[1770627639695,9.4639634,2051.8,2051.5,11.92666296]
[1770627639895,50.25938537,2051.7,2051.5,11.92666296]
[1770627640095,50.25938537,2051.7,2051.2,9.28368647]
[1770627640293,50.25938537,2051.7,2051.5,0.01]
[1770627640605,50.25938537,2051.7,2051.2,9.28368647]
[1770627640802,9.45938537,2051.6,2050.8,9.28869356]
[1770627643209,9.46938537,2051.6,2050.8,9.28869356]
[1770627644105,9.46938537,2051.6,2050.8,0.00500709]
[1770627645198,9.46938537,2051.6,2050.5,0.01]
[1770627645405,9.48551826,2051.4,2050.5,0.01]
[1770627646106,9.48551826,2051.4,2050.5,9.6599631]
[1770627646306,9.48551826,2051.4,2050.5,9.66438939]
[1770627648203,9.48551826,2051.4,2050.7,9.6599631]
[1770627649508,40.8,2051.5,2050.7,9.6599631]
[1770627649709,40.8,2051.5,2050.9,9.6599631]
[1770627649908,9.49009629,2051.8,2050.9,9.6599631]
[1770627650105,9.49009629,2051.8,2051.1,9.6599631]
[1770627650511,50.29009629,2051.8,2051.1,9.6599631]
[1770627650904,40.80457803,2051.8,2051.3,9.6599631]
[1770627651308,50.29009629,2051.8,2051.3,9.6599631]
[1770627651504,40.80457803,2051.8,2051.3,9.6599631]
[1770627652412,9.48551826,2052.2,2051.5,9.6599631]
[1770627652912,40.8,2052.1,2051.5,9.6599631]
[1770627653617,40.80579888,2052.1,2051.5,9.6599631]
[1770627654713,50.29131714,2052.1,2051.5,9.6599631]
[1770627655523,9.48551826,2052.0,2051.3,9.6599631]
[1770627655926,9.48551826,2052.0,2050.9,9.6599631]
[1770627657327,9.48551826,2051.8,2050.9,9.6599631]
[1770627658629,9.48551826,2051.8,2050.8,0.24401]
[1770627658828,9.48551826,2051.8,2050.8,9.9039731]
[1770627662125,9.48551826,2051.8,2051.1,9.6599631]
[1770627663230,9.48551826,2051.8,2051.0,0.24399]
[1770627663532,9.48551826,2051.6,2051.0,0.24399]
[1770627664225,9.48551826,2051.4,2051.0,0.24399]
[1770627664532,9.48551826,2051.7,2051.0,9.9039531]
[1770627664935,4.33779777,2051.6,2051.0,0.24399]
[1770627665132,12.33947951,2051.4,2050.6,9.6599631]
[1770627665331,9.48551826,2051.2,2050.5,9.90843939]
[1770627665735,9.48551826,2051.2,2050.5,0.00442629]
[1770627665936,9.48551826,2051.0,2050.1,9.6599631]
[1770627666136,9.48551826,2050.8,2050.1,9.6599631]
[1770627666329,9.48551826,2050.6,2050.0,0.24411]
[1770627666634,9.48551826,2050.6,2050.0,9.9040731]
[1770627666838,9.48946075,2050.6,2050.0,9.90751614]
[1770627667934,0.00394249,2050.6,2050.0,15.91278614]
[1770627668132,9.48551826,2051.0,2050.3,9.6599631]
[1770627668332,9.48551826,2051.2,2050.5,9.6599631]
[1770627668532,40.8,2051.1,2050.5,9.6599631]
[1770627669129,40.80433316,2051.1,2050.5,9.6599631]
[1770627669330,40.80433316,2051.1,2050.7,9.6599631]
[1770627669534,0.00433316,2051.1,2050.7,9.6599631]
[1770627670432,40.8,2051.3,2050.7,9.6599631]
[1770627670937,2.86716478,2051.6,2050.9,9.6599631]
[1770627670938,9.48551826,2051.6,2050.9,9.6599631]
[1770627671244,0.0048589,2051.6,2050.9,9.6599631]
[1770627671433,50.29037716,2051.6,2051.1,9.6599631]
[1770627671946,40.8048589,2051.6,2051.1,9.6599631]
[1770627672439,0.0048589,2051.6,2051.1,9.6599631]
[1770627673334,9.49037716,2051.6,2051.1,9.6599631]
[1770627674533,9.49037716,2051.6,2051.0,0.24399]
[1770627675241,0.0048589,2051.6,2051.0,9.9039531]
[1770627676139,11.1865736,2051.6,2051.0,0.24399]
[1770627676640,11.1865736,2051.6,2051.0,11.1426322]
[1770627677344,11.1865736,2051.6,2051.0,0.24399]
[1770627678534,11.1865736,2051.6,2051.0,11.01130915]
[1770627680942,0.0048589,2051.6,2051.0,11.01130915]
[1770627682547,11.81577435,2051.6,2051.0,11.01130915]
[1770627682742,0.0048589,2051.6,2051.0,11.01130915]
[1770627685143,11.81091545,2051.9,2051.3,10.76731915]
[1770627685340,11.81091545,2052.1,2051.3,10.76731915]
[1770627685539,45.13676155,2052.0,2051.3,10.76731915]
[1770627685743,52.61091545,2052.0,2051.3,10.76731915]
[1770627686151,52.61671089,2052.0,2051.3,10.76731915]
[1770627686850,11.81091545,2051.9,2051.3,10.76731915]
[1770627687850,11.81091545,2051.9,2051.2,0.24397]
[1770627688054,11.81091545,2051.7,2050.9,10.76731915]
[1770627689145,11.81091545,2051.5,2050.7,11.01134915]
[1770627689452,11.81091545,2051.3,2050.5,10.76731915]
[1770627689650,11.81091545,2051.1,2050.1,11.01140915]
[1770627689846,11.81091545,2050.9,2050.1,11.01140915]
[1770627690950,11.81091545,2051.3,2050.6,10.76731915]
[1770627691154,11.81091545,2051.3,2050.5,0.24404]
[1770627691557,11.81091545,2051.3,2050.5,11.01135915]
[1770627692047,11.81091545,2051.1,2050.5,11.01135915]
[1770627693958,11.81091545,2051.1,2050.5,0.24404]